Cogmind - Beta 14 @@@ ROGUE MODE // 2025.03.01 @ 15:47:10 Player: Prakos Result: Destroyed by as-10994 with Assembled Rifle Performance ------------- Evolutions (0) 0 Regions Visited (2) 400 Robots Destroyed (9) 45 Value Destroyed (209) 209 Prototype IDs (0) 0 Alien Tech Used (0) 0 Bonus (-196) -196 TOTAL SCORE: 458 Bonus ------- Friendly Fire -196 Cogmind --------- Core Integrity 0/250 Matter 83/300 Energy 34/100 System Corruption 1% Temperature Cool (4) Movement Treading (240) Ox1 Location -10/Mines Parts ------- > --- POWER (1) -------- (None) > --- PROPULSION (2) --- Light Treads > --- UTILITY (2) ------ Large Storage Unit > --- WEAPON (2) ------- EM Pulse Gun EM Pulse Gun > --- INVENTORY (15) --- Light Treads Light Treads Light Treads Light Treads Light Treads Huge Storage Unit Shock Trap Shock Trap Shock Trap Peak State ------------ > --- POWER ------------ Light Ion Engine > --- PROPULSION ------- Light Treads Light Treads > --- UTILITY ---------- Large Storage Unit > --- WEAPON ----------- Grenade Launcher Rocket Launcher > --- INVENTORY -------- Light Treads Light Treads Light Treads Light Treads Light Treads Huge Storage Unit EM Pulse Gun EM Pulse Gun Assault Rifle Assault Rifle Shock Trap Shock Trap Shock Trap [Rating: 8] Favorites ----------- Power Ion Engine Engine Ion Engine Propulsion Light Treads Treads Light Treads Utility Large Storage Unit Storage Large Storage Unit Weapon Assault Rifle Energy Gun EM Pulse Gun Ballistic Gun Assault Rifle Launcher Grenade Launcher Build | -11 -10 -10 ------- Run | Yrd Mat Min Slots Evolved . | . . . Power . | . . . Propulsion . | . . . Utility . | . . . Weapon . | . . . Parts Attached 16 | 6 2 8 Power 3 | 1 1 1 Engine 3 | 1 1 1 Core . | . . . Reactor . | . . . Propulsion 3 | 2 . 1 Treads 3 | 2 . 1 Leg . | . . . Wheel . | . . . Hover . | . . . Flight . | . . . Utility 2 | 1 1 . Device . | . . . Storage 2 | 1 1 . Processor . | . . . Hackware . | . . . Protection . | . . . Artifact . | . . . Weapon 8 | 2 . 6 Energy Gun 2 | . . 2 Energy Cannon . | . . . Ballistic Gun 4 | 2 . 2 Ballistic Cannon . | . . . Launcher 2 | . . 2 Special Weapon . | . . . Impact Weapon . | . . . Slashing Weapon . | . . . Piercing Weapon . | . . . Special Melee Weapon . | . . . Unidentified Prototypes . | . . . Parts Lost 8 | . 1 7 Power 3 | . 1 2 Propulsion 1 | . . 1 Utility . | . . . Weapon 4 | . . 4 Highest Loss Streak 7 | . 1 7 To Critical Strikes . | . . . Average Slot Usage (%) 76 | . 81 74 Engine 12 | . 10 12 Treads 21 | . 28 19 Storage 14 | . 14 14 Ballistic Gun 25 | . 28 24 Launcher 1 | . . 2 Peak Build Rating 8 | 6 7 8 Average Rating 6 | 4 5 6 On Entrance 4 | . 6 6 Naked Turns . | . . . Heaviest Build 32 | 14 29 32 Greatest Support 40 | 40 40 40 Greatest Overweight (x) 4 | 4 . 1 Average Overweight (x) . | . . . Largest Inventory Capacity 15 | 8 15 15 Average Capacity 13 | 7 12 15 Most Carried 15 | 2 8 15 Average Carried 11 | . 7 13 Final Capacity 15 | 8 15 15 Final Carried 9 | 2 8 9 Class Distribution -------------------- 100% | Mutant Dominant Class ---------------- Mutant | -10/Materials Mutant | -10/Mines Resources | -11 -10 -10 ----------- Run | Yrd Mat Min Matter Collected 353 | 224 84 45 Remotely . | . . . Salvage Created 186 | . 81 105 Parts 13 | . 5 8 Haulers Intercepted . | . . . Recyclers Shooed . | . . . Parts Field Recycled . | . . . Retrieved Matter . | . . . Parts Self-Destructed . | . . . Prevented . | . . . Kills | -11 -10 -10 ------- Run | Yrd Mat Min Combat Hostiles Destroyed 15 | . 2 13 Guns 6 | . 2 4 AOE 9 | . . 9 Classes Destroyed 6 | . 1 5 Builder 1 | . . 1 Swarmer 3 | . . 3 Grunt 2 | . 2 . Demolisher 2 | . . 2 Assembled 8 | . . 8 Guerrilla 1 | . . 1 Best Kill Streak 8 | . 1 8 Combat Bots Only 8 | . 1 8 Max Kills in Single Turn 4 | . 1 4 Gunslinging . | . . . Exploded 4 | . . 4 Melee . | . . . Uniques/NPCs Destroyed . | . . . Combat | -11 -10 -10 -------- Run | Yrd Mat Min Hostile Shots Fired 56 | . 10 46 Missed 8 | . 3 5 Damage Taken 1104 | . 203 901 Core 252 | . 17 235 Absorbed by Shields . | . . . Core Remaining (%) 100 | 100 . . Volleys Fired 30 | . 10 20 Largest 2 | . 2 2 Hottest 80 | . 40 80 Shots Fired 59 | . 20 39 Gun 46 | . 20 26 Cannon . | . . . Launcher 13 | . . 13 Special . | . . . Kinetic 38 | . 20 18 Thermal . | . . . Explosive 13 | . . 13 Electromagnetic 8 | . . 8 Robot Hit Streak 13 | . 13 8 Robot Miss Streak 3 | . 1 3 Penetration Max . | . . . Secondary Targets 1 | . . 1 Max Gunslinging Chain 1 | . . 1 Shots Hit Robots 43 | . 17 26 Core Hits 39 | . 5 34 Critical Kills . | . . . Critical Parts Destroyed . | . . . Critical Strikes . | . . . Melee Attacks . | . . . Impact . | . . . Slashing . | . . . Piercing . | . . . Sneak Attacks . | . . . Combat Hostiles . | . . . Follow-up Attacks . | . . . Damage Inflicted 1320 | . 217 1103 Guns 448 | . 211 237 Cannons . | . . . Explosions 866 | . . 866 Melee . | . . . Ramming 6 | . 6 . Kinetic 375 | . 211 164 Thermal . | . . . Explosive 866 | . . 866 Electromagnetic 73 | . . 73 Impact . | . . . Slashing . | . . . Piercing . | . . . Highest Corruption 1 | . 1 1 Average Corruption 1 | . 1 1 Corruption Purged . | . . . Corruption Blocked . | . . . Effects 3 | . . 3 Heat Flow Errors 1 | . . 1 Parts Rejected 1 | . . 1 Data Loss (minor) 1 | . . 1 Overload Shots . | . . . Overflow Damage 2 | . . 2 Projectiles . | . . . Explosions 2 | . . 2 Melee . | . . . Knockbacks . | . . . Impact . | . . . Kinetic . | . . . Secondary . | . . . Self-Inflicted Damage . | . . . Shots . | . . . Rammed 2 | . 1 1 Targets Rammed 2 | . 1 1 Kicked . | . . . Crushed . | . . . Highest Temperature 206 | . . 206 Average Temperature 33 | . . 33 Received Heat Transfer 42 | . 42 . Siege Activations . | . . . Robots Corrupted . | . . . Combat Hostiles . | . . . Parts Fried . | . . . Impact Corruptions . | . . . Robots Melted . | . . . Combat Hostiles . | . . . Parts Melted . | . . . Heat Transferred . | . . . Parts Sabotaged . | . . . Parts Stolen . | . . . Parts Stripped . | . . . Power Chain Reactions . | . . . Alert | -11 -10 -10 ------- Run | Yrd Mat Min Peak Influence 89 | . 50 89 Initial 19 | . . 19 Average 30 | . 12 41 Maximum Alert Level . | . . . Low Security (%) 100 | 100 100 100 Level 1 . | . . . Level 2 . | . . . Level 3 . | . . . Level 4 . | . . . Level 5 . | . . . High Security . | . . . Max Security . | . . . Squads Dispatched 1 | . 1 . Investigation . | . . . Extermination . | . . . Reinforcement 1 | . 1 . Assault . | . . . Garrison . | . . . Intercept . | . . . Searches Triggered . | . . . Construction Impeded . | . . . Haulers Reinforced . | . . . Active Scanning Responses . | . . . Cargo Convoy Interrupts . | . . . Stealth | -11 -10 -10 --------- Run | Yrd Mat Min Distress Signals 1 | . 1 . Communications Jammed . | . . . Distress Signals . | . . . Times Spotted 25 | . 4 21 Peak Tracking Total 8 | . 2 8 Tactical Retreats . | . . . Traps | -11 -10 -10 ------- Run | Yrd Mat Min Traps Triggered 3 | . 3 . Indirectly . | . . . Trap Hack Attempts . | . . . Triggered . | . . . Disarmed . | . . . Reprogrammed . | . . . Reused . | . . . Traps Extracted . | . . . Installed . | . . . Triggered . | . . . Most Traps Carried 3 | . . 3 Machines | -11 -10 -10 ---------- Run | Yrd Mat Min Machines Disabled . | . . . Max in Single Turn . | . . . Machines Repaired . | . . . Machines Dismantled . | . . . Machines Sabotaged . | . . . Overloaded Fab Kills . | . . . Hacking | -11 -10 -10 --------- Run | Yrd Mat Min Machines Accessed 2 | . 2 . Terminals 2 | . 2 . Fabricators . | . . . Repair Stations . | . . . Recycling Units . | . . . Scanalyzers . | . . . Garrison Access . | . . . Total Hacks 8 | . 8 . Successful 3 | . 3 . Failed 5 | . 5 . Catastrophic 1 | . 1 . Database Lockouts . | . . . Manual 8 | . 8 . Terminals 8 | . 8 . Fabricators . | . . . Repair Stations . | . . . Recycling Units . | . . . Scanalyzers . | . . . Garrison Access . | . . . Terminal Hacks 1 | . 1 . Part Schematic 1 | . 1 . Fabricator Hacks . | . . . Repair Station Hacks . | . . . Recycling Unit Hacks . | . . . Scanalyzer . | . . . Garrison Access Hacks . | . . . Unauthorized Hacks 2 | . 2 . Terminals 2 | . 2 . Botnet 2 | . 2 . Fabricators . | . . . Repair Stations . | . . . Recycling Units . | . . . Scanalyzers . | . . . Garrison Access . | . . . Data Cores Recovered . | . . . Used . | . . . Hacking Detections 2 | . 2 . Full Trace Events . | . . . Feedback Events . | . . . Feedback Blocked . | . . . Robot Schematics Acquired . | . . . Robots Built . | . . . Authchips . | . . . Time . | . . . Total Robot Build Rating . | . . . Part Schematics Acquired 1 | . 1 . Parts Built . | . . . Authchips . | . . . Time . | . . . Total Part Build Rating . | . . . Parts Repaired . | . . . Time . | . . . Parts Recycled . | . . . Recycled Matter . | . . . Retrieved Matter . | . . . Retrieved Components . | . . . Parts Scanalyzed . | . . . Part Schematics Acquired . | . . . Parts Damaged . | . . . Bothacking | -11 -10 -10 ------------ Run | Yrd Mat Min Used RIF Installer . | . . . Robots Hacked . | . . . Non-combat . | . . . Combat . | . . . Robot Hacks Applied . | . . . Relay Couplers Released . | . . . Fabnet Peak Effective % . | . . . Robots Rewired . | . . . Allies Hacked . | . . . Hacks Repelled . | . . . Allies | -11 -10 -10 -------- Run | Yrd Mat Min Total Allies . | . . . Largest Group . | . . . Highest-Rated Group . | . . . Highest-Rated Ally . | . . . Total Orders . | . . . Ally Attacks . | . . . Total Damage . | . . . Kills . | . . . Allies Corrupted . | . . . Allies Melted . | . . . Intel | -11 -10 -10 ------- Run | Yrd Mat Min Robot Analysis Total . | . . . Derelict Logs Recovered 1 | . . 1 Drone Launches . | . . . Drone Recoveries . | . . . Exploration | -11 -10 -10 ------------- Run | Yrd Mat Min Turns Passed 833 | 66 216 551 Spaces Moved 371 | 35 108 228 Core 10 | 10 . . Treads 361 | 25 108 228 Legs . | . . . Wheels . | . . . Hover . | . . . Flight . | . . . Fastest Speed 50 | 50 160 160 Average Speed 184 | 160 160 200 Slowest Speed 250 | 250 160 240 Overloaded Moves . | . . . Propulsion Burnouts . | . . . Robots Hopped . | . . . Cave-ins Triggered . | . . . Exploration Rate (%) 32 | 5 28 63 Regions Visited 2 Branch Regions 1 Pre-discovered Areas 1 | . . 1 Known Exits Taken . | . . . Unknown Exits Taken 2 | 1 1 . Scrap Searched . | . . . Spaces Dug . | . . . Terrain Destroyed 48 | . . 48 Melee . | . . . Projectile . | . . . AOE 48 | . . 48 Terrain Rammed . | . . . Walls Destroyed . | . . . Machines Disabled . | . . . Actions | -11 -10 -10 --------- Run | Yrd Mat Min Total 456 | 42 131 283 Wait 17 | . 2 15 Move 369 | 34 107 228 Hop . | . . . Pick Up 18 | 2 7 9 Fast Attach 8 | 6 2 . Attach 6 | . . 6 Detach . | . . . Swap 2 | . . 2 Drop 4 | . 2 2 Fire 30 | . 10 20 Melee . | . . . Ram . | . . . Kick . | . . . Crush 2 | . 1 1 Escape Stasis . | . . . Rewire . | . . . Trap . | . . . Miscellaneous . | . . . Route ------- -11/Scrapyard -10/Materials -10/Mines History --------- Turn | Location | Event 16 | -11/Scrapyard | Discovered new exit (range 16) 67 | -11/Scrapyard | Entered Materials 233 | -10/Materials | Discovered new exit (range 16) 283 | -10/Materials | Entered Mines 309 | -10/Mines | Build established: Mutant 311 | -10/Mines | Learned location of Zion (-7) 391 | -10/Mines | Found a hidden stash of uninstalled traps 516 | -10/Mines | Received a Rocket Launcher from a helpful Derelict 734 | -10/Mines | Assembled infested the area 739 | -10/Mines | Assisted by a Guerilla fighting off Assembled 783 | -10/Mines | Destroyed 8 combat bots 803 | -10/Mines | Core integrity fell below 50% 807 | -10/Mines | Core integrity fell below 20% 834 | -10/Mines | Destroyed by as-10994 with Assembled Rifle Last Messages --------------- 00797_ U-05 Engineer builds a Wall. 00797_ U-05 Engineer destroyed. 00799_ The unstable cave ceiling collapses. 00799_ Grenade Launcher destroyed. 00801_ The unstable cave ceiling collapses. 00808_ Assault Rifle destroyed. 00810_ Destroyed Shock Absorption System. 00811_ Assault Rifle destroyed. 00813_ The unstable cave ceiling collapses. 00814_ D-53 Grenadier destroyed. 00817_ The unstable cave ceiling collapses. 00820_ U-05 Engineer lays Concrete. 00820_ R-06 Scavenger collects Welding Torch. 00821_ U-05 Engineer lays Concrete. 00823_ The unstable cave ceiling collapses. 00824_ U-05 Engineer lays Concrete. 00831_ K-01 Serf collects debris. 00832_ U-05 Engineer lays Concrete. 00832_ R-06 Scavenger destroyed. 00833_ U-05 Engineer lays Concrete. Map ----- +----------------------------------------------------+ | #??????????????????????????????????????????????? | | #??????????????????????????????????????????????? | | #??????????????????????????????????????????????? | | #??????????????????????????????????????????????? | | ##??????????????????????????????????????????????? | | ##???????????????????????????????????????????????? | | #####?????#??????????????????????????????????????? | | ## ##### # ??????????????????????????????????? | | # ??????????????????????????????????? | | ???????????????????????????????????? | | ##??????????????????????????????????????????? | | #???????????????????????????????????????????? | | ##???????????????????????????????????????????? | | ##????????????????????????????????????????????? | | # #?????####????????????????????????????????????? | | ####### ######???????????????????????????????? | | # ## ## #####??######?###???????????????? | | # ### # #????????????????? | | ## # ??? ??????????? | | #### # # ??????????? | | #### ##??# # ## ??????????? | | ##??####???# #### # ?????????? | | ####??######### #### != a ?????????? | | ???#### *%* ????????????? | | #### u|% # ##???????????? | | # ## ######## k @ # #??????????? | | # ## ## #??????## #???????????? | | # ## ## #??????# # # # ###???????????? | | # ## ## #??????# # ##??????????????????? | | # ##?????# #???????????????????? | | #????# #???????????????????? | | #????# #???????????????????? | | ##????## ##???????????????????? | | ##??????## ###????????????????????? | | #????????##### ####??????????????????????? | | ### ##???????????###?????????????????????????? | | ??## #???????????????????????????????????????? | | ??## #???????????????????????????????????????? | | ?## #???????????????????????????????????????? | | ?# #???????????????????????????????????????? | | ?# #??#####????????????????????????????????? | | ?## #?## ##???????????????????????????????? | | ??## #### ##??????????????????????????????? | | ???# ##?# ##?????????????????????????????? | | ???# #### #?????????????????????????????? | | ??## ## #?????????????????????????????? | | ??# ##?????????????????????????????? | | ?# ##??????????????????????????????? | | ?# ##???????????????????????????????? | | ?# #????????????????????????????????? | +----------------------------------------------------+ Best States ------------- Heat Dissipation 25 Energy Generation 10 Energy Capacity 250 Matter Stores 294 Matter Capacity 300 Sight Range 16 Terrain Scan Density 10 Evasion (%) 40 Recoil Reduction 2 Item Schematics ----------------- Huge Storage Unit | -10/Materials | Hacked Robot Schematics ------------------ None Fabricated ------------ Nothing Alien Tech Used ----------------- None Achievements -------------- None Challenges ------------ None Game ------ Seed MassDiametricNukerbomber Manual? 0 Play Time 00:14:46 Cumulative 40.8 hours Start 2025.03.01 @ 15:35:14 End 2025.03.01 @ 15:47:10 Sessions 1 Manual Loads 0 Difficulty Rogue Special Mode None Game No. 31 Rogue 31 Adventurer 0 Explorer 0 Win Type - Total 0 Types 0/0/0/0/0/0/0/0/0 Lore% 14 Gallery% 26 Achievement% 24 Wizard Run 0 Options --------- Layout 1 ASCII 0 Keyboard 0 Movement Mouse Keybinds 0 Fullscreen 1 Font 24/Smallcaps Map View 50x35 Zoom Use 0% Tactical HUD 1 Map Filters NONE Filters NONE Steam 1 RUN: 9b35833c-747b-4058-8506-4697e0c2a54a